bitfinex/quotes_BTCUSD_20230120
["timestamp","ask_amount","ask_price","bid_price","bid_amount"]
[1674180667832,1.41640344,21119.0,21116.0,0.35902711]
[1674180668095,1.41640344,21119.0,21116.0,0.01342865]
[1674180668379,0.325359,21118.0,21116.0,0.01342865]
[1674180668871,0.65101131,21117.0,21116.0,0.01342865]
[1674180669134,0.43882431,21117.0,21116.0,0.01342865]
[1674180670173,0.51682431,21117.0,21116.0,0.01342865]
[1674180670689,0.078,21117.0,21116.0,0.01342865]
[1674180670956,0.078,21117.0,21116.0,0.42432119]
[1674180674416,0.078,21117.0,21116.0,0.10382865]
[1674180674672,0.078,21117.0,21116.0,1.66359065]
[1674180674970,0.078,21117.0,21116.0,2.14141921]
[1674180675229,0.078,21117.0,21116.0,1.67209065]
[1674180675527,0.078,21117.0,21116.0,2.04713579]
[1674180675799,0.078,21117.0,21116.0,1.74713579]
[1674180676091,0.078,21117.0,21116.0,2.04713579]
[1674180676355,0.078,21117.0,21116.0,1.74713579]
[1674180677250,0.078,21117.0,21116.0,2.04713579]
[1674180678882,0.078,21117.0,21116.0,1.74713579]
[1674180679416,0.078,21117.0,21116.0,2.04713579]
[1674180679944,0.078,21117.0,21116.0,1.65673579]
[1674180680206,0.078,21117.0,21116.0,1.34412179]
[1674180683996,0.07792806,21117.0,21116.0,1.34412179]
[1674180686386,0.07792806,21117.0,21116.0,1.33562179]
[1674180686643,0.07792806,21117.0,21116.0,0.86204779]
[1674180686907,0.07792806,21117.0,21116.0,0.48700265]
[1674180686908,0.41474006,21117.0,21116.0,0.48700265]
[1674180687188,0.41474006,21117.0,21116.0,0.01342865]
[1674180690071,0.41474006,21117.0,21116.0,0.48700265]
[1674180690331,0.41474006,21117.0,21116.0,0.01342865]
[1674180692414,0.41474006,21117.0,21116.0,0.43655577]
[1674180692658,0.07792806,21117.0,21116.0,0.43655577]
[1674180694228,0.07792806,21117.0,21116.0,0.91012977]
[1674180695831,0.07792806,21117.0,21116.0,0.43655577]
[1674180699067,0.07792806,21117.0,21116.0,0.44133262]
[1674180707601,0.07792806,21117.0,21116.0,0.91490662]
[1674180707864,0.0778274,21117.0,21116.0,2.78233075]
[1674180708196,0.0778274,21117.0,21116.0,3.18233075]
[1674180708448,0.0778274,21117.0,21116.0,3.08233075]
[1674180708732,0.0778274,21117.0,21116.0,3.04543019]
[1674180709567,0.0778274,21117.0,21116.0,1.5991155]
[1674180709828,0.0778274,21117.0,21116.0,1.97991557]
[1674180710108,0.0778274,21117.0,21116.0,2.54610971]
[1674180710369,0.0778274,21117.0,21116.0,2.65921227]
[1674180710623,0.0778274,21117.0,21116.0,3.12533823]
[1674180711447,0.0778274,21117.0,21116.0,3.01223567]
[1674180711711,0.0778274,21117.0,21116.0,2.54610971]
[1674180711971,0.0778274,21117.0,21116.0,3.07211017]
[1674180712532,0.0778274,21117.0,21116.0,4.13518946]
[1674180713052,0.39567734,21122.0,21116.0,4.13518946]
[1674180713319,0.39567734,21122.0,21117.0,1.69915792]
[1674180713590,0.39567734,21122.0,21118.0,1.844321]
[1674180713849,0.39567734,21122.0,21119.0,0.74923348]
[1674180714111,0.39567734,21122.0,21120.0,0.946968]
[1674180714372,0.11344997,21123.0,21120.0,0.946968]
[1674180714634,0.45132445,21123.0,21120.0,0.946968]
[1674180716230,0.77512493,21125.0,21120.0,0.946968]
[1674180716394,0.009,21123.0,21121.0,0.1]
[1674180716644,1.02007518,21125.0,21121.0,1.39872385]
[1674180717145,0.009,21123.0,21121.0,1.39872385]
[1674180717645,0.39853612,21124.0,21121.0,1.39872385]
[1674180718174,0.39853612,21124.0,21121.0,1.39972385]
[1674180718435,0.68594997,21125.0,21122.0,0.1085]
[1674180718696,0.5725,21125.0,21123.0,0.473417]
[1674180718953,0.5725,21125.0,21123.0,0.88692596]
[1674180718954,0.4915,21125.0,21123.0,0.88692596]
[1674180720492,0.5735,21125.0,21123.0,0.88792596]
[1674180720742,0.4915,21125.0,21124.0,0.40188741]
[1674180720994,0.5735,21125.0,21124.0,0.40188741]
[1674180721286,0.5735,21125.0,21123.0,0.474397]
[1674180722018,0.5735,21125.0,21123.0,0.947814]
[1674180722269,0.4915,21125.0,21123.0,1.37749963]
[1674180722773,0.4915,21125.0,21123.0,0.90410263]
[1674180723047,0.082,21125.0,21124.0,0.47720169]
[1674180723310,0.082,21125.0,21124.0,2.05559269]
[1674180723585,0.075,21125.0,21124.0,2.05559269]
[1674180724139,0.149,21125.0,21124.0,3.11739238]
[1674180724392,0.149,21125.0,21124.0,2.05759269]
[1674180725199,0.00957025,21126.0,21124.0,2.05559269]
[1674180725463,0.00957025,21126.0,21125.0,0.422297]
[1674180725722,0.00957025,21126.0,21125.0,1.677541]
[1674180725977,0.00957025,21126.0,21125.0,1.377541]
[1674180726788,0.00957025,21126.0,21125.0,2.08983248]
[1674180727037,0.00957025,21126.0,21125.0,2.0122947]
[1674180727318,0.01657025,21126.0,21125.0,2.02841032]
[1674180729943,0.01657025,21126.0,21125.0,2.12774566]
[1674180730832,0.01657025,21126.0,21125.0,1.69365662]
[1674180732569,0.01648109,21126.0,21125.0,1.69365662]
[1674180735238,0.01648109,21126.0,21125.0,2.00219431]
[1674180735491,0.01648109,21126.0,21125.0,1.67989731]
[1674180735819,0.01648109,21126.0,21125.0,1.99545831]
[1674180736074,0.01648109,21126.0,21125.0,2.00738631]
[1674180736339,0.00948109,21126.0,21125.0,1.66389731]
[1674180736598,0.01648109,21126.0,21125.0,2.00571531]
[1674180736863,0.01648109,21126.0,21125.0,1.67789731]
[1674180737150,0.01648109,21126.0,21125.0,1.99856331]
[1674180737403,0.01648109,21126.0,21125.0,1.37789731]
[1674180738243,0.00948109,21126.0,21125.0,1.69332531]
[1674180738574,0.02148109,21126.0,21125.0,1.69632531]
[1674180738835,0.02148109,21126.0,21125.0,1.68252931]
[1674180739095,0.02148109,21126.0,21125.0,1.36689731]
[1674180743296,0.02148109,21126.0,21125.0,0.89352531]
[1674180743817,0.02148109,21126.0,21125.0,1.36689731]
[1674180747196,0.02148109,21126.0,21125.0,1.36678169]
[1674180749075,0.00148109,21126.0,21125.0,1.36678169]
[1674180750947,0.00148109,21126.0,21125.0,1.36689731]
[1674180752852,0.00148109,21126.0,21125.0,1.36679351]
[1674180757011,0.28620206,21126.0,21125.0,0.949744]
[1674180757277,0.82096917,21126.0,21125.0,0.476372]
[1674180758050,0.82096917,21126.0,21125.0,0.003]
[1674180758053,1.23441914,21126.0,21125.0,0.003]
[1674180758860,1.91876002,21126.0,21125.0,0.003]
[1674180759154,2.03221,21126.0,21125.0,0.003]
[1674180759413,2.57414453,21126.0,21125.0,0.003]
[1674180759669,2.29051844,21126.0,21125.0,0.003]
[1674180759926,2.34724342,21126.0,21125.0,0.003]
[1674180760184,2.27403209,21126.0,21125.0,0.003]
[1674180760441,2.03044238,21126.0,21121.0,0.473445]
[1674180760715,0.60761021,21125.0,21121.0,0.473445]
[1674180760968,0.323975,21124.0,21121.0,0.89045411]
[1674180761235,0.213571,21123.0,21121.0,0.41700911]
[1674180761494,0.311185,21122.0,21121.0,0.42100911]
[1674180761969,0.311185,21122.0,21121.0,0.42550911]
[1674180762261,0.317801,21122.0,21121.0,0.42950911]
[1674180762779,0.42404894,21123.0,21121.0,0.0125]
[1674180763095,0.42404894,21123.0,21121.0,0.0085]
[1674180763292,0.315912,21122.0,21121.0,0.0125]
[1674180763561,0.313912,21122.0,21121.0,0.0085]
[1674180763821,0.42604894,21123.0,21121.0,0.0125]
[1674180764079,0.42404894,21123.0,21121.0,0.0085]
[1674180764337,0.002,21122.0,21121.0,0.0125]
[1674180764591,0.42404894,21123.0,21121.0,0.0085]
[1674180764846,0.42604894,21123.0,21121.0,0.0125]
[1674180765110,0.32424,21122.0,21121.0,0.0125]
[1674180765372,0.91862002,21125.0,21121.0,0.40619082]
[1674180765644,0.44524602,21125.0,21122.0,0.1]
[1674180766140,0.45283967,21124.0,21122.0,0.1]
[1674180766374,0.45283967,21124.0,21121.0,0.51019082]
[1674180766640,0.306163,21123.0,21122.0,0.1]
[1674180766861,0.45283967,21124.0,21122.0,0.101]
[1674180767085,0.45283967,21124.0,21122.0,0.1]
[1674180767313,0.32261,21123.0,21122.0,0.1]
[1674180767584,0.45283967,21124.0,21121.0,0.50619082]
[1674180768795,0.45283967,21124.0,21121.0,0.97964182]
[1674180769280,0.45283967,21124.0,21121.0,0.50619082]
[1674180769591,0.073,21123.0,21122.0,0.33220757]
[1674180769849,0.45283967,21124.0,21122.0,0.33120757]
[1674180770141,0.45483967,21124.0,21122.0,0.33120757]
[1674180770620,0.45283967,21124.0,21122.0,0.33120757]
[1674180770927,0.073,21123.0,21122.0,0.32720757]
[1674180771197,0.073,21123.0,21122.0,0.32620757]
[1674180771451,0.073,21123.0,21122.0,0.32720757]
[1674180771979,0.073,21123.0,21122.0,0.001]
[1674180772503,0.33653438,21123.0,21121.0,0.46606853]
[1674180772769,0.40953438,21123.0,21122.0,0.001]
[1674180773602,0.33653438,21123.0,21121.0,0.46606853]
[1674180773862,0.33853438,21123.0,21121.0,0.47006853]
[1674180774120,0.33653438,21123.0,21121.0,0.46606853]
[1674180774373,0.40953438,21123.0,21122.0,0.001]
[1674180775349,0.40953438,21123.0,21121.0,0.93952753]
[1674180775350,0.33653438,21123.0,21121.0,0.481959]
[1674180775877,0.311223,21122.0,21121.0,0.0125]
[1674180776138,0.311223,21122.0,21121.0,0.0085]
[1674180776397,0.315851,21122.0,21121.0,0.0085]
[1674180776652,0.33853438,21123.0,21121.0,0.0125]
[1674180776915,0.33653438,21123.0,21121.0,0.0085]
[1674180777171,0.002,21122.0,21121.0,0.44080136]
[1674180777508,0.33653438,21123.0,21121.0,0.43680136]
[1674180777700,0.33853438,21123.0,21121.0,0.44080136]
[1674180778220,0.33853438,21123.0,21121.0,0.0125]
[1674180778494,0.304638,21122.0,21121.0,0.0085]
[1674180778804,0.76812536,21122.0,21121.0,0.01261564]
[1674180779073,0.76612536,21122.0,21121.0,0.0085]
[1674180779328,0.46148736,21122.0,21121.0,0.0125]
[1674180779590,0.46148736,21122.0,21121.0,0.0085]
[1674180779851,0.46348736,21122.0,21121.0,0.0125]
[1674180780122,0.79060836,21122.0,21121.0,0.004]
[1674180783710,0.81060836,21122.0,21121.0,0.004]
[1674180787630,0.48348736,21122.0,21121.0,0.004]
[1674180790550,0.022,21122.0,21121.0,0.004]
[1674180794493,0.333881,21122.0,21121.0,0.004]
[1674180794665,0.6860247,21122.0,21121.0,0.004]
[1674180796504,0.79931394,21122.0,21121.0,0.004]
[1674180797260,0.6860247,21122.0,21121.0,0.004]
[1674180798821,0.79931394,21122.0,21121.0,0.004]
[1674180799352,0.79931394,21122.0,21121.0,0.00393884]
[1674180800078,0.96931365,21122.0,21121.0,0.00393884]
[1674180800335,0.79931394,21122.0,21121.0,0.00393884]
[1674180802166,0.96931365,21122.0,21121.0,0.00393884]
[1674180802445,0.79931394,21122.0,21121.0,0.00393884]
[1674180802959,0.6860247,21122.0,21121.0,0.00393884]
[1674180803221,0.3741437,21122.0,21121.0,0.00393884]
[1674180804328,0.6976277,21122.0,21121.0,0.00393884]
[1674180805398,0.02606116,21121.0,21120.0,0.36317522]
[1674180805663,0.67051215,21121.0,21119.0,0.473503]
[1674180805923,0.323484,21120.0,21119.0,0.473503]
[1674180806217,0.45645015,21121.0,21119.0,0.482003]
[1674180806484,0.45645015,21121.0,21120.0,0.0085]
[1674180806758,0.46445015,21121.0,21120.0,0.0085]
[1674180807838,0.79592915,21121.0,21120.0,0.0085]
[1674180808334,0.79692915,21121.0,21120.0,0.0175]
[1674180809820,1.04571519,21121.0,21120.0,0.0175]
[1674180810076,0.79692915,21121.0,21120.0,0.0175]
[1674180810874,0.46545015,21121.0,21120.0,0.0175]
[1674180814973,0.46545015,21121.0,21120.0,0.03393551]
[1674180815962,0.78030015,21121.0,21120.0,0.03393551]
[1674180816528,0.89358939,21121.0,21120.0,0.02543551]
[1674180816747,1.19507766,21121.0,21120.0,0.02543551]
[1674180818601,1.0635891,21121.0,21120.0,0.009]
[1674180819403,0.89358939,21121.0,21120.0,0.009]
[1674180821007,0.40719392,21120.0,21117.0,0.85183595]
[1674180821292,0.222696,21119.0,21118.0,0.0085]
[1674180821837,0.40719392,21120.0,21118.0,0.0085]
[1674180822113,0.52948316,21120.0,21118.0,0.0085]
[1674180822370,0.316423,21119.0,21118.0,0.0085]
[1674180822624,0.41619392,21120.0,21118.0,0.0085]
[1674180822885,0.32399,21119.0,21118.0,0.0085]
[1674180823147,0.52948316,21120.0,21118.0,0.0085]
[1674180823403,0.41619392,21120.0,21118.0,0.0085]
[1674180823691,0.339734,21119.0,21118.0,0.0085]
[1674180823948,0.40719392,21120.0,21118.0,0.0085]
[1674180824665,0.325523,21119.0,21118.0,0.0085]
[1674180824935,0.334523,21119.0,21118.0,0.0095]
[1674180825193,0.40719392,21120.0,21118.0,0.0085]
[1674180825506,0.88067892,21120.0,21116.0,0.00029441]
[1674180825791,0.320574,21119.0,21116.0,0.85278745]
[1674180826023,0.19432097,21119.0,21116.0,0.85278745]
[1674180826279,1.47646616,21120.0,21118.0,0.001]
[1674180826534,1.46746616,21120.0,21116.0,0.85278745]
[1674180826791,0.35783924,21119.0,21116.0,0.85378745]
[1674180827091,0.65783924,21119.0,21116.0,0.87309888]
[1674180827303,0.64883924,21119.0,21116.0,0.87209888]
[1674180827573,0.34883924,21119.0,21118.0,0.001]
[1674180827838,0.34883924,21119.0,21117.0,0.0085]
[1674180828122,0.35783924,21119.0,21117.0,0.0085]
[1674180829189,0.34883924,21119.0,21117.0,0.0085]
[1674180829454,0.35783924,21119.0,21117.0,0.0095]
[1674180829974,0.310932,21118.0,21117.0,0.0095]
[1674180830228,0.88991819,21119.0,21117.0,0.001]
[1674180830486,1.66344019,21119.0,21117.0,0.001]
[1674180830720,0.316278,21118.0,21117.0,0.001]
[1674180831756,0.616278,21118.0,21117.0,0.001]
[1674180832015,1.267479,21118.0,21117.0,0.001]
[1674180832342,1.267479,21118.0,21116.0,0.00029441]
[1674180832532,1.276479,21118.0,21117.0,0.001]
[1674180832787,2.34411224,21118.0,21117.0,0.001]
[1674180833052,2.16522316,21118.0,21117.0,0.001]
[1674180833318,1.98622345,21118.0,21116.0,0.00029441]
[1674180833617,0.75904418,21117.0,21116.0,0.00029441]
[1674180833876,0.75904418,21117.0,21116.0,0.00129441]
[1674180833877,1.23259618,21117.0,21116.0,0.00129441]
[1674180834132,1.23259618,21117.0,21116.0,0.00029441]
[1674180834647,1.67106139,21117.0,21116.0,0.00029441]
[1674180834909,1.42600321,21117.0,21116.0,0.01960584]
[1674180835680,1.51600321,21117.0,21116.0,0.01960584]
[1674180836707,1.077538,21117.0,21116.0,0.01960584]
[1674180836963,1.52026254,21117.0,21116.0,0.01960584]
[1674180837218,1.99381454,21117.0,21116.0,0.01960584]
[1674180837714,2.29741545,21117.0,21116.0,0.01960584]
[1674180837965,1.99381454,21117.0,21116.0,0.01960584]
[1674180842915,1.97344179,21117.0,21116.0,0.01960584]
[1674180843694,1.55109,21117.0,21116.0,0.01960584]
[1674180843990,1.66437924,21117.0,21116.0,0.01960584]
[1674180844224,2.05759881,21117.0,21116.0,0.01960584]
[1674180844485,1.94430957,21117.0,21116.0,0.01960584]
[1674180844741,2.29139215,21117.0,21116.0,0.01960584]
[1674180845008,2.46139186,21117.0,21116.0,0.01960584]
[1674180845303,2.46139186,21117.0,21116.0,0.0140977]
[1674180845538,2.64758806,21117.0,21116.0,0.0140977]
[1674180845793,2.02057515,21117.0,21116.0,0.0140977]
[1674180847094,1.90728591,21117.0,21116.0,0.0140977]
[1674180847619,1.60728591,21117.0,21116.0,0.0140977]
[1674180848597,1.13373391,21117.0,21116.0,0.0140977]
[1674180848848,0.66018191,21117.0,21116.0,0.0140977]
[1674180849103,0.44619591,21117.0,21116.0,0.0140977]
[1674180850674,0.09,21117.0,21116.0,0.46331483]
[1674180850938,0.09,21117.0,21116.0,0.94538883]
[1674180851194,0.09,21117.0,21116.0,1.41896283]
[1674180851449,0.09,21117.0,21116.0,1.73198983]
[1674180853534,0.09,21117.0,21116.0,1.41896283]
[1674180857096,0.09,21117.0,21116.0,1.72350683]
[1674180857619,0.09,21117.0,21116.0,1.41896283]
[1674180859131,0.09,21117.0,21116.0,1.74938683]
[1674180859650,0.09,21117.0,21116.0,1.41896283]
[1674180869899,0.09,21117.0,21116.0,0.0225977]
[1674180870399,0.411608,21117.0,21116.0,0.0225977]
[1674180871370,0.89821318,21117.0,21116.0,0.0225977]
[1674180871612,1.19821318,21117.0,21116.0,0.0225977]
[1674180872396,1.08076543,21117.0,21116.0,0.02252944]
[1674180873113,1.19405467,21117.0,21116.0,0.02252944]
[1674180873341,1.08076543,21117.0,21116.0,0.02252944]
[1674180873831,0.78076543,21117.0,21116.0,0.02252944]
[1674180874066,1.19405467,21117.0,21116.0,0.02252944]
[1674180874300,0.89405467,21117.0,21116.0,0.02252944]
[1674180874513,0.78076543,21117.0,21116.0,0.02252944]
[1674180874766,1.08076543,21117.0,21116.0,0.02252944]
[1674180875047,0.9653983,21117.0,21116.0,0.01402944]
[1674180875285,2.05959035,21117.0,21116.0,0.01402944]
[1674180875548,2.08250201,21117.0,21116.0,0.01402944]
[1674180875817,2.30929068,21117.0,21116.0,0.01402944]
[1674180876072,2.60929068,21117.0,21116.0,0.01402944]
[1674180876314,2.99668018,21117.0,21116.0,0.01402944]
[1674180876552,2.43929097,21117.0,21116.0,0.01402944]
[1674180876802,2.43929097,21117.0,21116.0,0.00022615]
[1674180877289,2.60909056,21117.0,21116.0,0.00022615]
[1674180877518,2.88672505,21117.0,21116.0,0.00022615]
[1674180877751,2.94357324,21117.0,21116.0,0.00022615]
[1674180878025,0.08232572,21115.0,21114.0,0.00749892]
[1674180878259,2.52832941,21115.0,21114.0,0.00749892]
[1674180878508,3.27572613,21115.0,21114.0,0.00749892]
[1674180879072,3.04938049,21115.0,21114.0,0.00749892]
[1674180879315,3.13238049,21115.0,21114.0,0.00849892]
[1674180879563,3.77076037,21115.0,21114.0,0.00749892]
[1674180879846,0.00889341,21113.0,21111.0,0.00800602]
[1674180880080,2.2514818,21112.0,21111.0,0.00800602]
[1674180880324,3.82630313,21112.0,21111.0,0.00800602]
[1674180880581,2.18002976,21112.0,21111.0,0.00800602]
[1674180880850,2.10979754,21112.0,21111.0,0.00800602]
[1674180881615,2.73688452,21112.0,21111.0,0.00800602]
[1674180881858,2.99743516,21112.0,21111.0,0.00800602]
[1674180882105,2.90643516,21112.0,21111.0,0.00800602]
[1674180882405,3.01960285,21112.0,21111.0,0.00800602]
[1674180882864,3.68278323,21112.0,21111.0,0.00800602]
[1674180883113,3.73095821,21112.0,21111.0,0.00800602]
[1674180883359,2.93227786,21112.0,21111.0,0.00800602]
[1674180883620,3.15844755,21112.0,21111.0,0.00800602]
[1674180883864,3.15844378,21112.0,21111.0,0.00800602]
[1674180884842,2.60518711,21112.0,21111.0,0.00800602]
[1674180885335,2.43587207,21112.0,21111.0,0.00800602]
[1674180885827,2.38769709,21112.0,21111.0,0.00800602]
[1674180886078,2.50057354,21112.0,21111.0,0.00800602]
[1674180886582,2.66988858,21112.0,21111.0,0.00800602]
[1674180886836,2.95559512,21112.0,21111.0,0.00800602]
[1674180887335,2.84271867,21112.0,21111.0,0.00800602]
[1674180888822,2.43587207,21112.0,21111.0,0.00800602]
[1674180890313,2.54874852,21112.0,21111.0,0.00800602]
[1674180891808,0.1,21111.0,21110.0,0.00475085]
[1674180892053,2.60990198,21111.0,21110.0,0.00475085]
[1674180892298,2.94168725,21111.0,21110.0,0.00475085]
[1674180892566,2.65807341,21111.0,21110.0,0.00475085]
[1674180892800,2.54547557,21111.0,21110.0,0.00475085]
[1674180893040,3.43350037,21111.0,21110.0,0.00475085]
[1674180893289,0.5997,21110.0,21109.0,0.00776584]
[1674180893527,3.04095583,21110.0,21109.0,6.584e-05]
[1674180893823,1.99969233,21110.0,21109.0,6.584e-05]
[1674180894852,1.69969233,21110.0,21109.0,6.584e-05]
[1674180895137,1.79069233,21110.0,21109.0,6.584e-05]
[1674180895615,1.95816032,21110.0,21109.0,6.584e-05]
[1674180895855,1.90998534,21110.0,21109.0,6.584e-05]
[1674180896101,2.37069711,21110.0,21109.0,6.584e-05]
[1674180896831,2.37069711,21110.0,21109.0,0.01517547]
[1674180898146,0.02408307,21106.0,21103.0,0.04738662]
[1674180898411,1.85573604,21106.0,21103.0,0.04738662]
[1674180898667,1.66141507,21106.0,21103.0,0.04738662]
[1674180899447,1.96141507,21106.0,21103.0,0.04738662]
[1674180899712,2.22621307,21106.0,21103.0,0.04738662]
[1674180899976,2.82673188,21106.0,21103.0,0.04738662]
[1674180900236,2.52673188,21106.0,21103.0,0.04738662]
[1674180900496,2.58965729,21106.0,21103.0,0.04738662]
[1674180900760,2.58965729,21106.0,21103.0,0.42733186]
[1674180900761,2.11585929,21106.0,21103.0,0.42733186]
[1674180901013,2.02485929,21106.0,21103.0,0.42733186]
[1674180901321,2.11585929,21106.0,21103.0,0.42733186]
[1674180901788,2.11585929,21106.0,21104.0,0.44159549]
[1674180902311,2.11585929,21106.0,21103.0,0.04738662]
[1674180902845,1.64206129,21106.0,21103.0,0.38378189]
[1674180903947,1.85364552,21106.0,21103.0,0.04738662]
[1674180904452,1.46611823,21106.0,21103.0,0.04738662]
[1674180904719,1.89769373,21106.0,21103.0,0.04738662]
[1674180904975,1.74860043,21106.0,21103.0,0.04738662]
[1674180905244,1.80049167,21106.0,21103.0,0.04738662]
[1674180908213,2.04852087,21106.0,21103.0,0.04738662]
[1674180908718,2.09669585,21106.0,21103.0,0.04738662]
[1674180908986,1.7172278,21106.0,21103.0,0.04738662]
[1674180909555,1.6262278,21106.0,21103.0,0.04738662]
[1674180909814,1.57805282,21106.0,21103.0,0.04738662]
[1674180910084,1.66905282,21106.0,21104.0,0.34192947]
[1674180910911,1.57805282,21106.0,21104.0,0.34192947]
[1674180911179,1.66905282,21106.0,21104.0,0.34192947]
[1674180912258,1.254534,21106.0,21104.0,0.34192947]
[1674180912546,0.564798,21106.0,21104.0,0.34192947]
[1674180913377,0.89018,21106.0,21104.0,0.34192947]
[1674180914163,0.89018,21106.0,21103.0,0.04738662]
[1674180914429,1.35125845,21106.0,21103.0,0.04738662]
[1674180914709,1.35125845,21106.0,21103.0,0.39782875]
[1674180916071,1.35125845,21106.0,21103.0,0.04738662]
[1674180917578,1.46379524,21106.0,21103.0,0.04738662]
[1674180918382,1.6326795,21106.0,21103.0,0.04738662]
[1674180918689,2.1064775,21106.0,21103.0,0.04738662]
[1674180919180,1.93759324,21106.0,21103.0,0.04738662]
[1674180919466,2.1064775,21106.0,21103.0,0.04738662]
[1674180919729,2.52902613,21106.0,21103.0,0.04738662]
[1674180920025,2.52902613,21106.0,21105.0,0.01176551]
[1674180920281,2.36014187,21106.0,21105.0,0.01176551]
[1674180920538,3.40522368,21106.0,21105.0,0.01176551]
[1674180920791,3.10522368,21106.0,21105.0,0.01176551]
[1674180921051,2.94414523,21106.0,21105.0,0.01176551]
[1674180921589,3.12810432,21106.0,21105.0,0.01176551]
[1674180922102,3.08186611,21106.0,21105.0,0.01176551]
[1674180922653,2.3367843,21106.0,21105.0,0.01176551]
[1674180922907,2.77388944,21106.0,21105.0,0.01176551]
[1674180923163,3.07388944,21106.0,21105.0,0.01176551]
[1674180923424,2.93638819,21106.0,21105.0,0.01176551]
[1674180923691,3.06702435,21106.0,21105.0,0.01176551]
[1674180924183,3.54494907,21106.0,21105.0,0.01176551]
[1674180924437,3.41432844,21106.0,21105.0,0.01176551]
[1674180924707,3.18792359,21106.0,21105.0,0.01176551]
[1674180924960,3.41435412,21106.0,21105.0,0.01176551]
[1674180925225,2.96937365,21106.0,21105.0,0.01176551]
[1674180925492,2.70999887,21106.0,21105.0,0.01176551]
[1674180925751,2.40999887,21106.0,21105.0,0.01176551]
[1674180926015,2.87238846,21106.0,21105.0,0.01176551]
[1674180926263,2.40999887,21106.0,21105.0,0.01176551]
[1674180926833,2.63646378,21106.0,21105.0,0.01176551]
[1674180927085,2.40999887,21106.0,21105.0,0.01176551]
[1674180927343,2.4925045,21106.0,21105.0,0.01176551]
[1674180927623,2.7925045,21106.0,21105.0,0.01176551]
[1674180927907,2.51157993,21106.0,21105.0,0.01176551]
[1674180928165,2.4947852,21106.0,21105.0,0.01176551]
[1674180929663,2.21157993,21106.0,21105.0,0.01176551]
[1674180930492,2.49493192,21106.0,21105.0,0.01176551]
[1674180932008,2.48993192,21106.0,21105.0,0.01176551]
[1674180933884,2.71673002,21106.0,21105.0,0.01176551]
[1674180934142,2.48993192,21106.0,21105.0,0.01176551]
[1674180935080,2.71673758,21106.0,21105.0,0.01176551]
[1674180935597,2.48993192,21106.0,21105.0,0.01176551]
[1674180935867,2.71678517,21106.0,21105.0,0.01176551]
[1674180936128,1.85670318,21106.0,21105.0,0.01176551]
[1674180936385,1.05752318,21106.0,21105.0,0.01176551]
[1674180936651,0.67323001,21106.0,21105.0,0.01176551]
[1674180936972,0.67323001,21106.0,21105.0,0.47760535]
[1674180937202,0.559798,21106.0,21105.0,0.47760535]
[1674180937455,0.67323001,21106.0,21105.0,0.47760535]
[1674180938004,0.99127801,21106.0,21105.0,0.47760535]
[1674180938305,0.877846,21106.0,21105.0,0.47760535]
[1674180938824,0.99127801,21106.0,21105.0,0.47760535]
[1674180940125,0.091,21106.0,21105.0,0.47760535]
[1674180940641,0.39766,21106.0,21105.0,0.47760535]
[1674180941672,0.091,21106.0,21105.0,0.47760535]
[1674180942238,0.091,21106.0,21105.0,0.01176551]
[1674180943972,0.091,21106.0,21105.0,0.39909957]
[1674180947343,0.091,21106.0,21105.0,1.34674157]
[1674180947619,0.091,21106.0,21105.0,0.39909957]
[1674180948124,0.091,21106.0,21105.0,0.87292057]
[1674180948379,0.091,21106.0,21105.0,0.39909957]
[1674180948936,0.43632749,21108.0,21105.0,0.40009957]
[1674180949204,0.91008449,21108.0,21105.0,0.39909957]
[1674180949429,0.082,21106.0,21105.0,0.40009957]
[1674180949708,0.91008449,21108.0,21105.0,0.40759957]
[1674180950080,0.99208449,21108.0,21105.0,0.40859957]
[1674180950249,0.91008449,21108.0,21105.0,0.40759957]
[1674180950504,0.082,21106.0,21105.0,0.02126551]
[1674180950768,0.473757,21108.0,21105.0,0.02026551]
[1674180951027,0.082,21108.0,21106.0,0.47315677]
[1674180951297,0.92286683,21109.0,21106.0,0.47315677]
[1674180952929,0.45814862,21108.0,21106.0,0.47415677]
[1674180953198,0.76757666,21107.0,21106.0,0.0085]
[1674180953453,0.76757666,21107.0,21106.0,0.0095]
[1674180953705,0.45425166,21107.0,21106.0,0.0085]
[1674180954271,0.45425166,21107.0,21106.0,0.0095]
[1674180955080,1.29481024,21107.0,21106.0,0.001]
[1674180955645,1.37781024,21107.0,21106.0,0.001]
[1674180955943,1.49124225,21107.0,21106.0,0.001]
[1674180956184,1.55959569,21107.0,21106.0,0.001]
[1674180956717,1.33191576,21107.0,21106.0,0.00089574]
[1674180956980,2.17769285,21107.0,21106.0,0.00089574]
[1674180957225,2.79306824,21107.0,21106.0,0.00089574]
[1674180957470,2.84124322,21107.0,21106.0,0.00089574]
[1674180957712,2.56026522,21107.0,21106.0,0.00089574]
[1674180957980,2.08166938,21107.0,21106.0,0.00089574]
[1674180958201,1.772102,21107.0,21105.0,0.01176551]
[1674180958442,0.59974507,21106.0,21105.0,0.01176551]
[1674180958684,1.18684207,21106.0,21105.0,0.01176551]
[1674180959180,1.07354307,21106.0,21105.0,0.01176551]
[1674180959426,1.27684207,21106.0,21105.0,0.01176551]
[1674180959678,1.75064007,21106.0,21105.0,0.01176551]
[1674180960731,1.63734107,21106.0,21105.0,0.01176551]
[1674180962091,1.16354307,21106.0,21105.0,0.01176551]
[1674180962354,1.63734107,21106.0,21105.0,0.01176551]
[1674180963380,1.75064007,21106.0,21105.0,0.01176551]
[1674180963655,2.05990424,21106.0,21105.0,0.01176551]
[1674180963919,1.67259117,21106.0,21105.0,0.01176551]
[1674180964454,2.19354815,21106.0,21105.0,0.01176551]
[1674180964716,1.99756731,21106.0,21105.0,0.01176551]
[1674180964982,1.53325055,21106.0,21105.0,0.01176551]
[1674180965247,1.9029526,21106.0,21105.0,0.02965057]
[1674180965518,1.73301338,21106.0,21105.0,0.02965057]
[1674180965823,1.61973005,21106.0,21105.0,0.02965057]
[1674180966692,1.73301338,21106.0,21105.0,0.02965057]
[1674180967222,1.9029526,21106.0,21105.0,0.02965057]
[1674180968261,1.73301338,21106.0,21105.0,0.02965057]
[1674180969348,1.9029526,21106.0,21105.0,0.02965057]
[1674180972097,0.95528222,21106.0,21105.0,0.02965057]
[1674180972361,0.67205967,21106.0,21105.0,0.02965057]
[1674180972615,1.14585767,21106.0,21105.0,0.02965057]
[1674180972888,1.61965567,21106.0,21105.0,0.02965057]
[1674180973421,1.732939,21106.0,21105.0,0.02965057]
[1674180974447,1.14585767,21106.0,21105.0,0.02965057]
[1674180974993,0.67205967,21106.0,21105.0,0.02965057]
[1674180975284,1.14585767,21106.0,21105.0,0.02965057]
[1674180975790,0.67205967,21106.0,21105.0,0.02965057]